Cogmind - Beta 13 X2 @@@ ROGUE MODE // 2023.12.23 @ 13:16:27 Player: f3-rnm Result: Destroyed by HK-OJD(R) with Subdweller Machine Gun Performance ------------- Evolutions (0) 0 Regions Visited (2) 400 Robots Destroyed (22) 110 Value Destroyed (539) 539 Prototype IDs (2) 40 Alien Tech Used (0) 0 Bonus (0) 0 TOTAL SCORE: 1089 Bonus ------- None Cogmind --------- Core Integrity 0/250 Matter 270/300 Energy 98/100 System Corruption 0% Temperature Cool (0) Movement Treading (160) Location -10/Subcaves Parts ------- > --- POWER (1) -------- (None) > --- PROPULSION (2) --- Light Treads Spiked Treads > --- UTILITY (2) ------ Scrap Shield > --- WEAPON (2) ------- Beam Cannon Makeshift Hammer > --- INVENTORY (5) ---- Compact Wheel Scrap Shield Heavy Riot Gun Beam Cannon Peak State ------------ > --- POWER ------------ Ion Engine > --- PROPULSION ------- Light Treads Spiked Treads > --- UTILITY ---------- Scrap Shield > --- WEAPON ----------- Beam Cannon Makeshift Hammer > --- INVENTORY -------- Compact Wheel Scrap Shield Heavy Riot Gun Beam Cannon [Rating: 14] Favorites ----------- Power Ion Engine Engine Ion Engine Propulsion Light Treads Treads Light Treads Wheel Compact Wheel Utility Scrap Shield Device Subdweller Optics Storage Large Storage Unit Protection Scrap Shield Weapon Beam Cannon Energy Gun Medium Laser Energy Cannon Beam Cannon Ballistic Gun Light Assault Rifle Impact Weapon Makeshift Hammer Build | -11 -10 -10 ------- Run | Yrd Mat Sub Slots Evolved . | . . . Power . | . . . Propulsion . | . . . Utility . | . . . Weapon . | . . . Parts Attached 16 | 6 1 9 Power 2 | 1 . 1 Engine 2 | 1 . 1 Core . | . . . Reactor . | . . . Propulsion 5 | 2 . 3 Treads 4 | 2 . 2 Leg . | . . . Wheel 1 | . . 1 Hover . | . . . Flight . | . . . Utility 4 | 1 1 2 Device 1 | . . 1 Storage 2 | 1 1 . Processor . | . . . Hackware . | . . . Protection 1 | . . 1 Artifact . | . . . Weapon 5 | 2 . 3 Energy Gun 1 | 1 . . Energy Cannon 2 | . . 2 Ballistic Gun 1 | 1 . . Ballistic Cannon . | . . . Launcher . | . . . Special Weapon . | . . . Impact Weapon 1 | . . 1 Slashing Weapon . | . . . Piercing Weapon . | . . . Special Melee Weapon . | . . . Unidentified Prototypes . | . . . Parts Lost 4 | . . 4 Power 2 | . . 2 Propulsion 2 | . . 2 Utility . | . . . Weapon . | . . . Highest Loss Streak 2 | . . 2 To Critical Strikes . | . . . Average Slot Usage (%) 83 | . 85 81 Engine 13 | . 14 13 Treads 24 | . 28 22 Storage 7 | . 14 2 Protection 6 | . . 11 Energy Gun 6 | . 14 . Energy Cannon 11 | . . 21 Ballistic Gun 6 | . 14 . Impact Weapon 2 | . . 4 Naked Turns . | . . . Heaviest Build 33 | 13 28 33 Greatest Support 40 | 40 40 40 Greatest Overweight (x) 1 | . . 1 Average Overweight (x) . | . . . Largest Inventory Capacity 15 | 8 15 15 Average Capacity 9 | 6 12 6 Most Carried 11 | 5 10 11 Average Carried 6 | 2 8 4 Final Capacity 15 | 8 15 5 Final Carried 10 | 3 10 5 Class Distribution -------------------- 78% | Mutant 21% | Subdweller-Mutant Dominant Class ---------------- Mutant | -10/Materials Mutant | -10/Subcaves Resources | -11 -10 -10 ----------- Run | Yrd Mat Sub Matter Collected 556 | 214 176 166 Remotely . | . . . Salvage Created 637 | 12 258 367 Parts 41 | 3 23 15 Haulers Intercepted 1 | . 1 . Recyclers Shooed 2 | . 2 . Parts Field Recycled . | . . . Retrieved Matter . | . . . Parts Self-Destructed 5 | . . 5 Prevented . | . . . Kills | -11 -10 -10 ------- Run | Yrd Mat Sub Combat Hostiles Destroyed 17 | . 8 9 Melee 1 | . . 1 Guns 8 | . 8 . Cannons 5 | . . 5 Classes Destroyed 7 | 1 4 2 Worker 1 | 1 . . Hauler 1 | . 1 . Watcher 3 | . 3 . Swarmer 6 | . 6 . Grunt 2 | . 2 . Artisan 1 | . . 1 Subdweller 9 | . . 9 Best Kill Streak 6 | 1 6 3 Combat Bots Only 6 | . 6 3 Max Kills in Single Turn 2 | 1 2 1 Gunslinging . | . . . Exploded . | . . . Melee 1 | . . 1 Uniques/NPCs Destroyed . | . . . Combat | -11 -10 -10 -------- Run | Yrd Mat Sub Hostile Shots Fired 115 | . 54 61 Missed 23 | . 7 16 Damage Taken 1462 | . 384 1078 Core 265 | . 77 188 Absorbed by Shields . | . . . Core Remaining (%) 100 | 100 . . Volleys Fired 76 | 4 36 36 Largest 2 | 2 2 2 Hottest 120 | 70 70 120 Shots Fired 150 | 8 72 70 Gun 82 | 8 72 2 Cannon 68 | . . 68 Launcher . | . . . Special . | . . . Kinetic 41 | 4 36 1 Thermal 109 | 4 36 69 Explosive . | . . . Electromagnetic . | . . . Robot Hit Streak 19 | 2 11 19 Robot Miss Streak 3 | 1 3 3 Penetration Max . | . . . Secondary Targets 2 | . 2 . Max Gunslinging Chain 1 | . 1 . Shots Hit Robots 106 | 4 45 57 Core Hits 35 | 2 21 12 Critical Kills 2 | . . 2 Critical Parts Destroyed 1 | . . 1 Critical Strikes 12 | . 8 4 Burn 8 | . 8 . Meltdown 1 | . . 1 Smash 3 | . . 3 Melee Attacks 13 | . . 13 Impact 13 | . . 13 Slashing . | . . . Piercing . | . . . Sneak Attacks 1 | . . 1 Combat Hostiles . | . . . Follow-up Attacks . | . . . Damage Inflicted 1635 | 53 497 1085 Guns 550 | 53 497 . Cannons 666 | . . 666 Explosions . | . . . Melee 419 | . . 419 Ramming . | . . . Kinetic 187 | 15 172 . Thermal 1029 | 38 325 666 Explosive . | . . . Electromagnetic . | . . . Impact 419 | . . 419 Slashing . | . . . Piercing . | . . . Highest Corruption . | . . . Average Corruption . | . . . Corruption Purged . | . . . Corruption Blocked . | . . . Overload Shots . | . . . Overflow Damage 55 | . . 55 Projectiles . | . . . Explosions . | . . . Melee 55 | . . 55 Knockbacks 1 | . . 1 Impact 1 | . . 1 Kinetic . | . . . Secondary . | . . . Self-Inflicted Damage . | . . . Shots . | . . . Rammed . | . . . Targets Rammed . | . . . Kicked . | . . . Crushed . | . . . Highest Temperature 471 | 40 200 471 Average Temperature 74 | 21 61 101 Received Heat Transfer 829 | . 36 793 Effects 2 | . . 2 Shutdowns 1 | . . 1 Energy Bleed 1 | . . 1 Siege Activations . | . . . Robots Corrupted . | . . . Combat Hostiles . | . . . Parts Fried 2 | . . 2 Impact Corruptions 4 | . . 4 Robots Melted 1 | . . 1 Combat Hostiles 1 | . . 1 Parts Melted 8 | . 3 5 Heat Transferred 3071 | 111 1554 1406 Parts Sabotaged . | . . . Parts Stolen . | . . . Parts Stripped . | . . . Power Chain Reactions . | . . . Missiles Intercepted . | . . . Alert | -11 -10 -10 ------- Run | Yrd Mat Sub Peak Influence 258 | 5 258 . Initial 3 | . 3 . Average 60 | . 66 . Maximum Alert Level 1 | . 1 . Low Security (%) 95 | 100 94 . Level 1 4 | . 5 . Level 2 . | . . . Level 3 . | . . . Level 4 . | . . . Level 5 . | . . . High Security . | . . . Max Security . | . . . Squads Dispatched 3 | . 3 . Investigation . | . . . Extermination . | . . . Reinforcement 3 | . 3 . Assault . | . . . Garrison . | . . . Intercept . | . . . Searches Triggered . | . . . Construction Impeded . | . . . Haulers Reinforced . | . . . Active Scanning Responses . | . . . Cargo Convoy Interrupts . | . . . Stealth | -11 -10 -10 --------- Run | Yrd Mat Sub Distress Signals . | . . . Communications Jammed . | . . . Distress Signals . | . . . Times Spotted 27 | . 16 11 Peak Tracking Total 7 | . 7 3 Tactical Retreats . | . . . Traps | -11 -10 -10 ------- Run | Yrd Mat Sub Traps Triggered . | . . . Indirectly . | . . . Trap Hack Attempts . | . . . Triggered . | . . . Disarmed . | . . . Reprogrammed . | . . . Reused . | . . . Traps Extracted . | . . . Installed . | . . . Triggered . | . . . Machines | -11 -10 -10 ---------- Run | Yrd Mat Sub Machines Disabled . | . . . Max in Single Turn . | . . . Machines Repaired . | . . . Machines Dismantled . | . . . Machines Sabotaged . | . . . Overloaded Fab Kills . | . . . Hacking | -11 -10 -10 --------- Run | Yrd Mat Sub Machines Accessed 1 | . 1 . Terminals 1 | . 1 . Fabricators . | . . . Repair Stations . | . . . Recycling Units . | . . . Scanalyzers . | . . . Garrison Access . | . . . Total Hacks 4 | . 4 . Successful 2 | . 2 . Failed 2 | . 2 . Catastrophic 1 | . 1 . Database Lockouts . | . . . Manual 2 | . 2 . Terminals 4 | . 4 . Fabricators . | . . . Repair Stations . | . . . Recycling Units . | . . . Scanalyzers . | . . . Garrison Access . | . . . Terminal Hacks 2 | . 2 . Robot Analysis 1 | . 1 . Prototype ID Bank 1 | . 1 . Fabricator Hacks . | . . . Repair Station Hacks . | . . . Recycling Unit Hacks . | . . . Scanalyzer . | . . . Garrison Access Hacks . | . . . Unauthorized Hacks . | . . . Terminals . | . . . Fabricators . | . . . Repair Stations . | . . . Recycling Units . | . . . Scanalyzers . | . . . Garrison Access . | . . . Data Cores Recovered . | . . . Used . | . . . Hacking Detections 1 | . 1 . Full Trace Events . | . . . Feedback Events . | . . . Feedback Blocked . | . . . Robot Schematics Acquired . | . . . Robots Built . | . . . Authchips . | . . . Time . | . . . Total Robot Build Rating . | . . . Part Schematics Acquired . | . . . Parts Built . | . . . Authchips . | . . . Time . | . . . Total Part Build Rating . | . . . Parts Repaired . | . . . Time . | . . . Parts Recycled . | . . . Recycled Matter . | . . . Retrieved Matter . | . . . Retrieved Components . | . . . Parts Scanalyzed . | . . . Part Schematics Acquired . | . . . Parts Damaged . | . . . Bothacking | -11 -10 -10 ------------ Run | Yrd Mat Sub Used RIF Installer . | . . . Robots Hacked . | . . . Non-combat . | . . . Combat . | . . . Robot Hacks Applied . | . . . Relay Couplers Released . | . . . Fabnet Peak Effective % . | . . . Robots Rewired . | . . . Allies Hacked . | . . . Hacks Repelled . | . . . Allies | -11 -10 -10 -------- Run | Yrd Mat Sub Total Allies . | . . . Largest Group . | . . . Highest-Rated Group . | . . . Highest-Rated Ally . | . . . Total Orders . | . . . Ally Attacks . | . . . Total Damage . | . . . Kills . | . . . Allies Corrupted . | . . . Allies Melted . | . . . Intel | -11 -10 -10 ------- Run | Yrd Mat Sub Robot Analysis Total 1 | . 1 . Derelict Logs Recovered . | . . . Drone Launches . | . . . Drone Recoveries . | . . . Exploration | -11 -10 -10 ------------- Run | Yrd Mat Sub Turns Passed 2294 | 108 984 1202 Spaces Moved 868 | 66 249 553 Core 21 | 21 . . Treads 808 | 45 249 514 Legs . | . . . Wheels 39 | . . 39 Hover . | . . . Flight . | . . . Fastest Speed 50 | 50 160 115 Average Speed 170 | 125 160 181 Slowest Speed 240 | 160 160 240 Overloaded Moves . | . . . Propulsion Burnouts . | . . . Robots Hopped . | . . . Cave-ins Triggered . | . . . Exploration Rate (%) 24 | 4 54 16 Regions Visited 2 Branch Regions 1 Pre-discovered Areas . | . . . Known Exits Taken . | . . . Unknown Exits Taken 2 | 1 1 . Scrap Searched 1 | . . 1 Spaces Dug 1 | . . 1 Terrain Destroyed 1 | . . 1 Melee 1 | . . 1 Projectile . | . . . AOE . | . . . Terrain Rammed . | . . . Walls Destroyed . | . . . Machines Disabled . | . . . Actions | -11 -10 -10 --------- Run | Yrd Mat Sub Total 1528 | 84 770 674 Wait 509 | . 476 33 Move 866 | 65 248 553 Hop . | . . . Pick Up 28 | 9 7 12 Fast Attach 2 | . 1 1 Attach 10 | 6 . 4 Detach 1 | . 1 . Swap 4 | . . 4 Drop 12 | . 1 11 Fire 76 | 4 36 36 Melee 13 | . . 13 Ram . | . . . Kick . | . . . Crush . | . . . Escape Stasis . | . . . Rewire . | . . . Trap . | . . . Miscellaneous 7 | . . 7 Route ------- -11/Scrapyard -10/Materials (discovered 5 exits: [*Mat x2] / [*Min x2] / [*Sub]) -10/Subcaves (discovered 1 exit: [*Mat]) History --------- Turn | Location | Event 12 | -11/Scrapyard | Discovered new exit (range 15) 109 | -11/Scrapyard | Entered Materials 300 | -10/Materials | Build established: Mutant 311 | -10/Materials | Discovered new exit (range 5) 368 | -10/Materials | Discovered new exit (range 11) 477 | -10/Materials | Discovered new exit (range 15) 548 | -10/Materials | Discovered new exit (range 16) 1068 | -10/Materials | Discovered new exit (range 6) 1093 | -10/Materials | Entered Subcaves 1255 | -10/Subcaves | Core integrity fell below 50% 1273 | -10/Subcaves | Discovered new exit (range 18) 1274 | -10/Subcaves | Ambushed by Subdwellers from Twisted Machinery 1624 | -10/Subcaves | Build established: Subdweller-Mutant 1744 | -10/Subcaves | Core integrity fell below 20% 2045 | -10/Subcaves | Build established: Mutant 2270 | -10/Subcaves | A Subdweller sparked back to life 2295 | -10/Subcaves | Destroyed by HK-OJD(R) with Subdweller Machine Gun Last Messages --------------- 02233_ Sneak attack on ZI-35D(u). 02233_ ZI-35D(u) suffers critical hit (Smash). 02233_ ZI-35D(u) cries out in pain. 02233_ ZI-35D(u) destroyed. 02235_ WC-GRS(O) collects matter. 02236_ WC-GRS(O) puts together Sub. Laser. 02236_ Acquired Scrap Shield. 02244_ Acquired Spk. Treads. 02257_ Acquired Hvy. Riot Gun. 02270_ 29-U35(R) creaks and sparks as it begins to move. 02272_ I1-V4B(R): "LEAVESUB!" 02276_ I1-V4B(R) suffers critical hit (Smash). 02278_ I1-V4B(R) knocked back. 02282_ Destroyed Sub. Power Source. 02282_ I1-V4B(R) system corrupted by crushing effect. 02282_ Ion Engine destroyed. 02284_ I1-V4B(R) destroyed. 02292_ 29-U35(R) suffers critical hit (Smash). 02292_ Destroyed Disposable Heat Sink. 02292_ 29-U35(R) system corrupted by crushing effect. Map ----- +----------------------------------------------------+ | ?????????????????????????????????????????????????? | | ?????????????????????????????????????????????????? | | ?????????????????????????????????????????????????? | | ?????????????????????????????????????????????????? | | ?????????????????????????????????????????????????? | | ?????????????????????????????????????????????????? | | ??????????????????????? ?????????????????????????? | | ??????????????????????? ????????????????????????? | | ?????????????????????? ?????????????????????????? | | ?????????????????????? ?????????????????????????? | | ?????????????????????? ?????????????????????????? | | ??????????????????##?? ?????????????????????????? | | ??????????????????# ?? #?????????????????????????? | | ?????????????????## ?? #?????????????????????????? | | ?????????????????# ?? #?????????????????????????? | | ?????????????????# ## ##????????????????????????? | | ?????????????????# ?????????????????????????? | | ??????????????????# ??????????????????????????? | | #####???????#####??# =##?????????????????????????? | | # #????#### ##?# #?????????????????????????? | | #????#"# ### ;#####?????????????????????? | | ###### | #?????????????????????? | | ""## ! #?????????????????????? | | ## # "# """ R ####??????????????????? | | ####" ## ###### R #??????????????????? | | #### # ####?## @] ##??????????????????? | | # ## ### ## #??????????????????? | | ## # " #?????????????????? | | # "" """" #;% #" " #????????????????? | | ## ## """""""" #### ##" #????????????????? | | ?#########""##"" #??## # " #????????????????? | | ?????????# ####""#??## ### " #????????????????? | | ?????????###??#"##??#[*&#### ##????????????????? | | ??????????????###???# & #?? ?????????????????? | | ????????????????????##"&##??#[ ##????????????????? | | ????????????????????#"" #??? #?????????????????? | | ????????????????????# #???? ??????????????????? | | ????????????????????## #???????????????????????? | | ????????????????????# #???????????????????????? | | ????????????????? ##???????????????????????? | | ????????????????# #????????????????????????? | | ????????????????## ????????????????????????? | | ?????????????????# ???????????????????????? | | ?????????????????# ??????????????????????? | | ????????????????? ##??????????????????????? | | ???????????????? #???????????????????????? | | ??????????????? #???????????????????????? | | ?????????????? #???????????????????????? | | ????????????? ???????????????????????? | | ???????????? ### ???????????????????????? | +----------------------------------------------------+ Best States ------------- Heat Dissipation 25 Energy Generation 10 Energy Capacity 250 Matter Stores 300 Matter Capacity 300 Sight Range 21 Terrain Scan Density 10 Armor Coverage 800 Evasion (%) 50 Recoil Reduction 2 Item Schematics ----------------- None Robot Schematics ------------------ None Fabricated ------------ Nothing Alien Tech Used ----------------- None Achievements -------------- None Challenges ------------ None Game ------ Seed ServoRecoilGravjet Manual? 0 Play Time 00:09:56 Cumulative 129.3 hours Start 2023.12.23 @ 13:02:09 End 2023.12.23 @ 13:16:27 Sessions 1 Manual Loads 0 Difficulty Rogue Special Mode None Game No. 142 Rogue 106 Adventurer 36 Explorer 0 Win Type - Total 8 Types 2/0/6/0/0/0/0/0/0 Lore% 53 Gallery% 76 Achievement% 62 Wizard Run 0 Options --------- ASCII 0 Keyboard 0 Movement Mouse Keybinds 0 Fullscreen 1 Font 18/SmallcapsGlow Map View 76x50 Zoom Use 0% Tactical HUD 1 Map Filters NONE Filters NONE Steam 1 RUN: 99e89955-ce35-4fbf-a5a3-bce205531de7